Cogmind - Beta 16.1 @@@ ROGUE MODE // 2026.03.06 @ 13:05:14 Player: Deloads Result: Destroyed by G-47 Trooper with Particle Gun Performance ------------- Evolutions (2) 1000 Regions Visited (7) 1400 Robots Destroyed (43) 215 Value Destroyed (940) 940 Prototype IDs (23) 460 Alien Tech Used (0) 0 Bonus (307) 307 TOTAL SCORE: 4322 Bonus ------- Follower Combat Kills 7 Aligned with FarCom 300 Cogmind --------- Core Integrity 0/550 Matter 207/300 Energy 65/100 System Corruption 0% Temperature Cool (18) Movement Flying (840) Ox10 Location -8/Materials Parts ------- > --- POWER (1) -------- (None) > --- PROPULSION (4) --- Flight Unit > --- UTILITY (4) ------ High-capacity Storage Unit Targeting Computer ECM Suite Core Shielding > --- WEAPON (2) ------- (None) > --- INVENTORY (20) --- Light Ion Engine Light Ion Engine Light Nuclear Core Flight Unit Flight Unit Large Storage Unit Hacking Suite Hacking Suite Mining Laser Longsword +1 Deploy-a-Sentry Peak State ------------ > --- POWER ------------ Light Nuclear Core > --- PROPULSION ------- Light Treads Light Treads Light Treads Advanced Treads > --- UTILITY ---------- High-capacity Storage Unit Seismic Detector Targeting Computer Targeting Computer > --- WEAPON ----------- Assault Rifle Assault Rifle > --- INVENTORY -------- Light Ion Engine Light Ion Engine Flight Unit Flight Unit Flight Unit Flight Unit Flight Unit Flight Unit Large Storage Unit ECM Suite Core Shielding Hacking Suite Grenade Launcher Mining Laser Longsword +1 Deploy-a-Sentry [Rating: 18] Favorites ----------- Power Light Ion Engine Engine Light Ion Engine Power Core Light Nuclear Core Propulsion Light Treads Treads Light Treads Flight Unit Flight Unit Utility Seismic Detector Device Seismic Detector Storage Large Storage Unit Processor Targeting Computer Protection Core Shielding Weapon Assault Rifle Ballistic Gun Assault Rifle Launcher Grenade Launcher Build | -11 -10 -10 -9 -9 -9 -8 -8 ------- Run | Yrd Mat Min Mat Min Exi Min Mat Slots Evolved 4 | . . . 2 . . . 2 Power . | . . . . . . . . Propulsion 2 | . . . 1 . . . 1 Utility 2 | . . . 1 . . . 1 Weapon . | . . . . . . . . Parts Attached 22 | 7 1 1 2 . . . 11 Power 3 | 1 . 1 . . . . 1 Engine 2 | 1 . 1 . . . . . Core 1 | . . . . . . . 1 Reactor . | . . . . . . . . Propulsion 8 | 2 . . 1 . . . 5 Treads 4 | 2 . . 1 . . . 1 Leg . | . . . . . . . . Wheel . | . . . . . . . . Hover . | . . . . . . . . Flight 4 | . . . . . . . 4 Utility 8 | 2 1 . 1 . . . 4 Device 2 | 1 . . . . . . 1 Storage 3 | 1 1 . . . . . 1 Processor 2 | . . . 1 . . . 1 Hackware . | . . . . . . . . Protection 1 | . . . . . . . 1 Artifact . | . . . . . . . . Weapon 3 | 2 . . . . . . 1 Energy Gun . | . . . . . . . . Energy Cannon . | . . . . . . . . Ballistic Gun 2 | 2 . . . . . . . Ballistic Cannon . | . . . . . . . . Launcher 1 | . . . . . . . 1 Special Weapon . | . . . . . . . . Impact Weapon . | . . . . . . . . Slashing Weapon . | . . . . . . . . Piercing Weapon . | . . . . . . . . Special Melee Weapon . | . . . . . . . . Unidentified Prototypes . | . . . . . . . . Parts Lost 14 | . 1 . . . . . 13 Power 2 | . 1 . . . . . 1 Propulsion 7 | . . . . . . . 7 Utility 2 | . . . . . . . 2 Weapon 3 | . . . . . . . 3 Highest Loss Streak 9 | . 1 . . . . . 9 To Critical Strikes . | . . . . . . . . Average Backups 11 | 5 8 13 14 14 14 14 14 Power . | . . . 1 1 1 1 2 Propulsion 5 | 3 3 5 7 7 6 6 5 Utility 2 | . 2 4 3 3 3 3 3 Weapon 2 | 1 2 3 3 3 3 4 3 Tool/Special . | . . . . . . . . Unused Backups 15 | . 5 . . . 1 . 9 Power 3 | . 1 . . . . . 2 Propulsion 6 | . 3 . . . 1 . 2 Utility 2 | . . . . . . . 2 Weapon 4 | . 1 . . . . . 3 Tool/Special . | . . . . . . . . Average Slot Usage (%) 93 | . 95 93 92 100 100 100 75 Engine 8 | . 10 7 11 11 11 11 1 Core 1 | . . . . . . . 6 Treads 27 | . 28 28 26 33 33 33 19 Device 12 | . 14 14 11 11 11 11 8 Storage 12 | . 14 14 11 11 11 11 9 Processor 6 | . . . 11 11 11 11 15 Ballistic Gun 22 | . 27 28 22 22 22 22 9 Peak Build Rating 18 | 7 7 8 10 10 11 11 18 Average Rating 9 | 5 6 7 9 10 10 11 13 On Entrance 8 | . 7 7 8 10 10 11 11 Avg Prop Armor Cover (%) . | . . . . . . . . Naked Turns . | . . . . . . . . Heaviest Build 70 | 15 30 28 28 28 28 28 70 Greatest Support 82 | 40 40 40 60 60 60 60 82 Greatest Overweight (x) 10 | . . . . . . . 10 Average Overweight (x) . | . . . . . . . . Largest Inventory Capacity 20 | 8 15 15 15 15 15 15 20 Average Capacity 13 | 7 11 15 15 15 15 15 18 Most Carried 18 | 8 11 15 14 14 15 15 18 Average Carried 12 | 5 8 13 14 14 14 15 15 Final Capacity 20 | 8 15 15 15 15 15 15 20 Final Carried 15 | 8 11 15 14 14 15 15 11 Class Distribution -------------------- 99% | Mutant Dominant Class ---------------- Mutant | -10/Materials Mutant | -10/Mines Mutant | -9/Materials Mutant | -9/Mines Mutant | -9/Exiles Mutant | -8/Mines Mutant | -8/Materials Resources | -11 -10 -10 -9 -9 -9 -8 -8 ----------- Run | Yrd Mat Min Mat Min Exi Min Mat Matter Collected 766 | 304 252 16 93 24 . . 77 Remotely . | . . . . . . . . Salvage Created 1099 | 97 503 30 208 33 . . 228 Parts 98 | 13 42 5 11 7 . . 20 Haulers Intercepted . | . . . . . . . . Recyclers Shooed 1 | . 1 . . . . . . Parts Field Recycled . | . . . . . . . . Retrieved Matter . | . . . . . . . . Parts Self-Destructed . | . . . . . . . . Prevented . | . . . . . . . . Parts Restored . | . . . . . . . . Kills | -11 -10 -10 -9 -9 -9 -8 -8 ------- Run | Yrd Mat Min Mat Min Exi Min Mat Combat Hostiles Destroyed 27 | . 12 2 4 3 . . 6 Guns 21 | . 12 2 4 3 . . . AOE 6 | . . . . . . . 6 Classes Destroyed 9 | 1 5 . 1 . . . 2 Worker 2 | . 1 . . . . . 1 Tunneler 6 | 5 1 . . . . . . Recycler 1 | . . . . . . . 1 Operator 2 | . 1 . . . . . 1 Watcher 5 | . 3 . 1 . . . 1 Swarmer 12 | . 4 2 . 3 . . 3 Grunt 12 | . 8 . 2 . . . 2 Sentry 2 | . . . 2 . . . . Hunter 1 | . . . . . . . 1 Best Kill Streak 5 | 3 5 2 5 3 . . 4 Combat Bots Only 4 | . 3 2 4 3 . . 3 Max Kills in Single Turn 2 | 1 1 2 1 2 . . 2 Gunslinging 1 | . . . . 1 . . . Exploded 2 | . . . . . . . 2 Melee . | . . . . . . . . Uniques/NPCs Destroyed . | . . . . . . . . Combat | -11 -10 -10 -9 -9 -9 -8 -8 -------- Run | Yrd Mat Min Mat Min Exi Min Mat Hostile Shots Fired 180 | . 54 1 15 14 . . 96 Missed 44 | . 14 . 1 6 . . 23 Hits 136 | . 40 1 14 8 . . 73 Projectile 136 | . 40 1 14 8 . . 73 Critical Strikes 4 | . 1 . . . . . 3 Actively Blocked 1 | . . . . . . . 1 Damage Taken 2082 | . 414 7 195 58 . . 1408 Core 669 | . 61 7 27 19 . . 555 Absorbed by Shields . | . . . . . . . . Redirected to Shielding 14 | . . . . . . . 14 Regen/Repaired (Parts) 53 | . 53 . . . . . . Core Remaining (%) 86 | 100 . 72 . . . 88 . Volleys Fired 84 | 6 42 1 13 4 . . 18 Largest 2 | 2 2 2 2 2 . . 2 Hottest 40 | 40 40 40 40 40 . . 40 Shots Fired 154 | 12 84 2 26 8 . . 22 Gun 147 | 12 84 2 26 8 . . 15 Cannon . | . . . . . . . . Launcher 7 | . . . . . . . 7 Special . | . . . . . . . . Kinetic 147 | 12 84 2 26 8 . . 15 Thermal . | . . . . . . . . Explosive 7 | . . . . . . . 7 Electromagnetic . | . . . . . . . . Robot Hit Streak 9 | 4 8 1 9 2 . . 8 Robot Miss Streak 5 | 2 5 1 4 4 . . 2 Penetration Max . | . . . . . . . . Secondary Targets 4 | . 1 . 1 2 . . . Max Gunslinging Chain 1 | . 1 . 1 1 . . . Shots Hit Robots 93 | 5 50 1 17 3 . . 17 Core Hits 62 | 5 28 2 8 3 . . 16 Critical Kills 1 | . 1 . . . . . . Critical Parts Destroyed 1 | . . . . . . . 1 Critical Strikes 2 | . 1 . . . . . 1 Destroy 2 | . 1 . . . . . 1 Melee Attacks . | . . . . . . . . Impact . | . . . . . . . . Slashing . | . . . . . . . . Piercing . | . . . . . . . . Sneak Attacks . | . . . . . . . . Combat Hostiles . | . . . . . . . . Follow-up Attacks . | . . . . . . . . Damage Inflicted 1770 | 57 658 26 195 42 . . 792 Guns 1069 | 57 630 25 185 42 . . 130 Cannons . | . . . . . . . . Explosions 662 | . . . . . . . 662 Melee . | . . . . . . . . Ramming 39 | . 28 1 10 . . . . Kinetic 1069 | 57 630 25 185 42 . . 130 Thermal 242 | . . . . . . . 242 Explosive 420 | . . . . . . . 420 Electromagnetic . | . . . . . . . . Impact . | . . . . . . . . Slashing . | . . . . . . . . Piercing . | . . . . . . . . Highest Corruption . | . . . . . . . . Average Corruption . | . . . . . . . . Corruption Purged . | . . . . . . . . Corruption Blocked . | . . . . . . . . Overload Shots . | . . . . . . . . Overflow Damage 196 | . . . . . . . 196 Projectiles . | . . . . . . . . Explosions 196 | . . . . . . . 196 Melee . | . . . . . . . . Knockbacks 1 | . . . 1 . . . . Impact 1 | . . . 1 . . . . Kinetic . | . . . . . . . . Secondary . | . . . . . . . . Self-Inflicted Damage 433 | . . . . . . . 433 Shots 9 | . . . . . . . 9 Rammed 10 | . 7 1 2 . . . . Targets Rammed 10 | . 7 1 2 . . . . Kicked . | . . . . . . . . Crushed . | . . . . . . . . Highest Temperature 13 | . . . . . . . 13 Average Temperature 10 | . . . . . . . 10 Received Heat Transfer 654 | . 174 . 75 . . . 405 Siege Activations . | . . . . . . . . Martial Activations . | . . . . . . . . Shielding Activations . | . . . . . . . . Robots Disrupted . | . . . . . . . . Combat Hostiles . | . . . . . . . . Robots Corrupted . | . . . . . . . . Combat Hostiles . | . . . . . . . . Parts Fried . | . . . . . . . . Impact Corruptions . | . . . . . . . . Robots Melted . | . . . . . . . . Combat Hostiles . | . . . . . . . . Parts Melted . | . . . . . . . . Heat Transferred 150 | . . . . . . . 150 Parts Sabotaged . | . . . . . . . . Parts Stolen . | . . . . . . . . Parts Stripped . | . . . . . . . . Power Chain Reactions . | . . . . . . . . Alert | -11 -10 -10 -9 -9 -9 -8 -8 ------- Run | Yrd Mat Min Mat Min Exi Min Mat Maximum Alert Level 1 | . . . . . . . 1 Low Security (%) 99 | 100 100 100 100 100 . 100 96 Level 1 . | . . . . . . . 3 Level 2 . | . . . . . . . . Level 3 . | . . . . . . . . Level 4 . | . . . . . . . . Level 5 . | . . . . . . . . High Security . | . . . . . . . . Max Security . | . . . . . . . . Peak Influence 214 | 15 96 78 80 104 . . 214 Initial 19 | . . . . 19 . . . Average 23 | 1 23 10 26 72 . . 58 Influence Increases 1000 | 25 341 78 117 85 . . 354 Destroy 0b10 Robot/C 560 | . 240 60 80 60 . . 120 Destroy 0b10 Robot/NC 80 | 25 30 . 5 . . . 20 Destroy Leader 140 | . 56 10 32 10 . . 32 Allied During Kill 8 | . . 8 . . . . . Disable Machine 105 | . 15 . . . . . 90 Destroy Structure 62 | . . . . . . . 62 Partial Spotted 15 | . . . . 15 . . . Lose Combat Pursuer 30 | . . . . . . . 30 Influence Decreases 954 | 25 341 78 67 81 54 . 308 Entered New Map 85 | . . . . 31 54 . . Time Decay 734 | 25 331 78 67 50 . . 183 Lost Part 135 | . 10 . . . . . 125 Squads Dispatched 9 | . 4 . 1 . . . 4 Investigation 2 | . 2 . . . . . . Extermination . | . . . . . . . . Reinforcement 7 | . 2 . 1 . . . 4 Assault . | . . . . . . . . Garrison . | . . . . . . . . Intercept . | . . . . . . . . Searches Triggered . | . . . . . . . . Construction Impeded 1 | . . . . . . . 1 Haulers Reinforced . | . . . . . . . . Active Scanning Responses . | . . . . . . . . Cargo Convoy Interrupts . | . . . . . . . . Stealth | -11 -10 -10 -9 -9 -9 -8 -8 --------- Run | Yrd Mat Min Mat Min Exi Min Mat Distress Signals 4 | . 1 . 1 . . . 2 Communications Jammed . | . . . . . . . . Distress Signals . | . . . . . . . . Times Spotted 55 | . 24 2 8 3 . . 18 Peak Tracking Total 9 | . 5 1 4 3 . . 9 Tactical Retreats 1 | . . . . . . . 1 Traps | -11 -10 -10 -9 -9 -9 -8 -8 ------- Run | Yrd Mat Min Mat Min Exi Min Mat Traps Triggered 3 | . 2 . 1 . . . . Indirectly . | . . . . . . . . Trap Hack Attempts . | . . . . . . . . Triggered . | . . . . . . . . Disarmed . | . . . . . . . . Reprogrammed . | . . . . . . . . Reused . | . . . . . . . . Traps Extracted . | . . . . . . . . Installed . | . . . . . . . . Triggered . | . . . . . . . . Machines | -11 -10 -10 -9 -9 -9 -8 -8 ---------- Run | Yrd Mat Min Mat Min Exi Min Mat Machines Disabled 7 | . 1 . . . . . 6 Max in Single Turn 3 | . 1 . . . . . 3 Machines Repaired . | . . . . . . . . Machines Dismantled . | . . . . . . . . Machines Sabotaged . | . . . . . . . . Overloaded Fab Kills . | . . . . . . . . Hacking | -11 -10 -10 -9 -9 -9 -8 -8 --------- Run | Yrd Mat Min Mat Min Exi Min Mat Machines Accessed 3 | . 2 . . . 1 . . Terminals 1 | . 1 . . . . . . Fabricators . | . . . . . . . . Repair Stations 1 | . 1 . . . . . . Recycling Units . | . . . . . . . . Scanalyzers . | . . . . . . . . Garrison Access . | . . . . . . . . Total Hacks 6 | . 5 . . . 1 . . Successful 4 | . 3 . . . 1 . . Failed 2 | . 2 . . . . . . Catastrophic . | . . . . . . . . Database Lockouts . | . . . . . . . . Manual 1 | . . . . . 1 . . Terminals 1 | . 1 . . . . . . Fabricators . | . . . . . . . . Repair Stations 4 | . 4 . . . . . . Recycling Units . | . . . . . . . . Scanalyzers . | . . . . . . . . Garrison Access . | . . . . . . . . Terminal Hacks 2 | . 1 . . . 1 . . Record 1 | . 1 . . . . . . Proto ID Catalog 1 | . . . . . 1 . . Fabricator Hacks . | . . . . . . . . Repair Station Hacks 2 | . 2 . . . . . . Scan Component 1 | . 1 . . . . . . Repair 1 | . 1 . . . . . . Recycling Unit Hacks . | . . . . . . . . Scanalyzer . | . . . . . . . . Garrison Access Hacks . | . . . . . . . . Unauthorized Hacks . | . . . . . . . . Terminals . | . . . . . . . . Fabricators . | . . . . . . . . Repair Stations . | . . . . . . . . Recycling Units . | . . . . . . . . Scanalyzers . | . . . . . . . . Garrison Access . | . . . . . . . . Data Cores Recovered . | . . . . . . . . Used . | . . . . . . . . Hacking Detections 2 | . 2 . . . . . . Full Trace Events 1 | . 1 . . . . . . Feedback Events . | . . . . . . . . Feedback Blocked . | . . . . . . . . Robot Schematics Acquired . | . . . . . . . . Robots Built . | . . . . . . . . Authchips . | . . . . . . . . Time . | . . . . . . . . Total Robot Build Rating . | . . . . . . . . Part Schematics Acquired . | . . . . . . . . Parts Built . | . . . . . . . . Authchips . | . . . . . . . . Time . | . . . . . . . . Total Part Build Rating . | . . . . . . . . Part Studies Acquired . | . . . . . . . . Parts Repaired 1 | . 1 . . . . . . Time 26 | . 26 . . . . . . Parts Recycled . | . . . . . . . . Recycled Matter . | . . . . . . . . Retrieved Matter . | . . . . . . . . Retrieved Components . | . . . . . . . . Parts Scanalyzed . | . . . . . . . . Part Schematics Acquired . | . . . . . . . . Parts Damaged . | . . . . . . . . Bothacking | -11 -10 -10 -9 -9 -9 -8 -8 ------------ Run | Yrd Mat Min Mat Min Exi Min Mat Used RIF Installer . | . . . . . . . . Robots Hacked . | . . . . . . . . Non-combat . | . . . . . . . . Combat . | . . . . . . . . Robot Hacks Applied . | . . . . . . . . Relay Couplers Released . | . . . . . . . . Fabnet Peak Effective % . | . . . . . . . . Robots Rewired . | . . . . . . . . Allies Hacked . | . . . . . . . . Hacks Repelled . | . . . . . . . . Allies | -11 -10 -10 -9 -9 -9 -8 -8 -------- Run | Yrd Mat Min Mat Min Exi Min Mat Total Allies 2 | . . 2 . . . . . Largest Group 2 | . . 2 2 . . . . Highest-Rated Group 45 | . . 45 45 . . . . Highest-Rated Ally 31 | . . 31 31 . . . . Total Orders . | . . . . . . . . Ally Attacks 8 | . . 1 7 . . . . Total Damage 123 | . . 20 103 . . . . Kills 1 | . . 1 . . . . . Allies Corrupted . | . . . . . . . . Allies Melted . | . . . . . . . . Intel | -11 -10 -10 -9 -9 -9 -8 -8 ------- Run | Yrd Mat Min Mat Min Exi Min Mat Active Infowar (turns) 4826 | 21 1891 597 255 113 344 842 763 Seismic 4824 | 21 1891 597 255 113 344 842 761 ECM 2 | . . . . . . . 2 Robot Analysis Total . | . . . . . . . . Derelict Logs Recovered 1 | . . 1 . . . . . Drone Launches . | . . . . . . . . Drone Recoveries . | . . . . . . . . Exploration | -11 -10 -10 -9 -9 -9 -8 -8 ------------- Run | Yrd Mat Min Mat Min Exi Min Mat Turns Passed 5131 | 284 1891 597 255 113 344 842 805 Spaces Moved 2051 | 97 761 222 130 54 214 242 331 Core 3 | 3 . . . . . . . Treads 2026 | 94 761 222 130 54 214 242 309 Legs . | . . . . . . . . Wheels . | . . . . . . . . Hover . | . . . . . . . . Flight 22 | . . . . . . . 22 Fastest Speed 50 | 50 160 160 160 160 160 160 156 Average Speed 167 | 156 160 160 160 160 160 160 206 Slowest Speed 840 | 160 160 160 160 160 160 160 840 Overloaded Moves . | . . . . . . . . Propulsion Burnouts . | . . . . . . . . Robots Hopped . | . . . . . . . . Potential Cave-ins . | . . . . . . . . Cave-ins Triggered . | . . . . . . . . Exploration Rate (%) 38 | 5 99 47 19 14 59 43 20 Regions Visited 7 Branch Regions 4 Pre-discovered Areas 1 | . . 1 . . . . . Known Exits Taken . | . . . . . . . . Unknown Exits Taken 7 | 1 1 1 1 1 1 1 . Scrap Searched 2 | . . 1 . . . 1 . Spaces Dug . | . . . . . . . . Terrain Destroyed 68 | . . . . . . . 68 Melee . | . . . . . . . . Projectile . | . . . . . . . . AOE 68 | . . . . . . . 68 Terrain Rammed . | . . . . . . . . Walls Destroyed . | . . . . . . . . Machines Disabled . | . . . . . . . . Actions | -11 -10 -10 -9 -9 -9 -8 -8 --------- Run | Yrd Mat Min Mat Min Exi Min Mat Total 3594 | 214 1349 461 149 73 216 697 435 Wait 1398 | 97 524 233 3 16 . 456 69 Move 2044 | 96 760 221 129 53 213 241 331 Hop . | . . . . . . . . Pick Up 25 | 8 8 4 . . 2 . 3 Fast Attach 12 | 7 1 1 1 . . . 2 Attach 9 | . . . 1 . . . 8 Detach 1 | . . . . . . . 1 Swap 3 | . 1 . . . . . 2 Drop 8 | . 6 . . . 1 . 1 Fire 84 | 6 42 1 13 4 . . 18 Melee . | . . . . . . . . Ram . | . . . . . . . . Kick . | . . . . . . . . Crush 10 | . 7 1 2 . . . . Escape Stasis . | . . . . . . . . Rewire . | . . . . . . . . Trap . | . . . . . . . . Miscellaneous . | . . . . . . . . Route ------- -11/Scrapyard -10/Materials (discovered 4 exits: [*Mat x3] / [*Min]) -10/Mines -9/Materials -9/Mines -9/Exiles -8/Mines -8/Materials History --------- Turn | Location | Event 42 | -11/Scrapyard | Discovered new exit (range 15) 285 | -11/Scrapyard | Entered Materials 313 | -10/Materials | Build established: Mutant 901 | -10/Materials | Discovered new exit (range 8) 1030 | -10/Materials | Repaired Assault Rifle 1350 | -10/Materials | Discovered new exit (range 11) 1712 | -10/Materials | Discovered new exit (range 11) 1992 | -10/Materials | Discovered new exit (range 12) 2176 | -10/Materials | Entered Mines 2205 | -10/Mines | Learned location of Storage (-7) 2764 | -10/Mines | Discovered new exit (range 5) 2773 | -10/Mines | Entered Materials 2773 | -9/Materials | Accompanied by 2 allies 2773 | -9/Materials | Evolved 2 slots: Propulsion x1, Utility x1 2778 | -9/Materials | Led the pair of lost Derelicts to an unsafe place 2986 | -9/Materials | Discovered new exit (range 7) 3028 | -9/Materials | Entered Mines 3114 | -9/Mines | Deemed a non-threat by the Exiles lab entrance 3116 | -9/Mines | Discovered new exit (range 5) 3141 | -9/Mines | Entered Exiles 3180 | -9/Exiles | Met 8R-AWN 3205 | -9/Exiles | Met EX-HEX 3250 | -9/Exiles | Met EX-BIN 3274 | -9/Exiles | Aligned with FarCom system 3276 | -9/Exiles | Given EX-Vault access code 3317 | -9/Exiles | Opened EX-Vault 3327 | -9/Exiles | Found Longsword +1 3330 | -9/Exiles | Found Deploy-a-Sentry 3365 | -9/Exiles | Warned to stay clear of 0b10 Research branches 3414 | -9/Exiles | Met EX-DEC 3469 | -9/Exiles | Discovered new exit (range 12) 3485 | -9/Exiles | Stole two prototypes: Longsword +1, Deploy-a-Sentry 3485 | -9/Exiles | Entered Mines 4314 | -8/Mines | Discovered new exit (range 6) 4327 | -8/Mines | Entered Materials 4327 | -8/Materials | Evolved 2 slots: Propulsion x1, Utility x1 4680 | -8/Materials | Lost 3 parts (2n1w) 5095 | -8/Materials | Core integrity fell below 50% 5126 | -8/Materials | Core integrity fell below 20% 5132 | -8/Materials | Destroyed by G-47 Trooper with Particle Gun Last Messages --------------- K-01 Serf cleans the Electrolysis Chamber. Slug penetrates Wall. U-05 Engineer destroyed. K-01 Serf collects debris. Penetrated by Slug. U-05 Engineer works on Electrolysis Chamber. Electrolysis Chamber disabled. K-01 Serf collects debris. Penetrated by Slug. Flight Unit destroyed. U-05 Engineer works on Electrolysis Chamber. Targeting Computer destroyed. U-05 Engineer works on Electrolysis Chamber. K-01 Serf collects debris. Flight Unit destroyed. K-01 Serf collects debris. ALERT: Hostiles spotted, dispatching reinforcements to Terminal M010. Flight Unit destroyed. Map ----- +----------------------------------------------------+ | ????????????????????????# ###= ! # # | | ????????????????????????############ # # | | ??????????????????????????? # = " # # | | ??????????????????????? # "%=" # # | | ????????????????????????? """ # ""*""" # # | | ????????????????????????? "Y" # """%""" # + | | ????????????????????????? " " # """ """ # # | | ????????????????????????? # # # | | ??????????????????????" """ #######+### # | | ????????????????????""" """ | | ?????????????????? """ """ | | ????????????????? | | ???????????????? ########+## | | ???????????????? """ """ """ #??# | | ?????????????? """ """ """ #??# | | ?????????????? " """ "" #??# """ | | ????????????? #??# """ | | ????????????????? ! #??# """ *= | | ????????????????????????# YghY !%| #??# *= | | ????????????????????????# g######### #??# * | | ????????????????????????# #???????# #??# | | ????????????????????????# #???????# #??######## | | ????????????????????????# #???????# #?????????? | | ????????????????????????# #???????# #?????????? | | ????????????????????????# #???????# #?????????? | | ????????????????????????#@ #???????# #?????????? | | ????????????????????????# #???????# #?????????? | | ????????????????????????# #???????# #?????????? | | ????????????????????????# #???????# #?????????? | | ????????????????????????+ #???????# #?????????? | | ????????????????????????# #???????# #?????????? | | ????????????????????????# #???????# ?????????? | | ???????????h????????????# #???????+ ?????????? | | ???????????w???????????? ???????# ?????????? | | ???????????????????????? ???????# ????????? | | ???????????????????????? Y ??????? ????????? | | ???????????????????????? ?????? ????????? | | ???????????????????????? ?????? ????????? | | ????????????????????????# ##?????? ???????? | | ????????????????????????? #???????#/####???????? | | ????????????????????????? ????????? ???????????? | | ?????????????????????????????????????????????????? | | ?????????????????????????????????????????????????? | | ?????????????????????????????????????????????????? | | ?????????????????????????????????????????????????? | | ?????????????????????????????????????????????????? | | ?????????????????????????????????????????????????? | | ?????????????????????????????????????????????????? | | ?????????????????????????????????????????????????? | | ?????????????????????????????????????????????????? | +----------------------------------------------------+ Best States ------------- Heat Dissipation 31 Energy Generation 14 Energy Capacity 250 Matter Stores 300 Matter Capacity 300 Sight Range 16 Terrain Scan Density 10 Core Shielding 20 Evasion (%) 40 Targeting Accuracy 10 Recoil Reduction 4 Item Schematics ----------------- None Robot Schematics ------------------ None Fabricated ------------ Nothing Repaired ---------- Assault Rifle | 47% | -10/Materials Studied --------- None Alien Tech Used ----------------- None Achievements -------------- None Challenges ------------ None Game ------ Seed GravityTachyonEngine Manual? 0 Play Time 00:29:39 Cumulative 9.9 hours Start 2026.03.06 @ 12:38:08 End 2026.03.06 @ 13:05:14 Sessions 1 Manual Loads 0 Difficulty Rogue Special Mode None Game No. 40 Rogue 40 Adventurer 0 Explorer 0 Win Type - Total 0 Types 0/0/0/0/0/0/0/0/0/0 Lore% 6 Gallery% 11 Achievement% 14 Wizard Run 0 Options --------- Layout 1 ASCII 0 Keyboard 0 Movement Numpad Keybinds 0 Fullscreen 2 Font 24/Terminus Map View 50x35 Zoom Use 0% Tactical HUD 0 Map Filters NONE Filters NONE Steam 1 RUN: e5980356-86d7-473e-902c-94fa4db78d9b